[Event "Late-Titled-Tuesday-Blitz-January-16-2024"]
[Site "Chess.com"]
[Date "2024.01.16"]
[Round "2"]
[White "Hooded_Old_Man"]
[Black "Airquake"]
[Result "0-1"]
[WhiteElo "2268"]
[BlackElo "2525"]
[TimeControl "180+1"]
[EndTime "14:16:20 PST"]
[Termination "Airquake won by resignation"]

1. d4 {[%clk 0:03:00.9]} 1... c6 {[%clk 0:02:56.1]} 2. c4 {[%clk 0:02:59.7]}
2... d5 {[%clk 0:02:56.1]} 3. cxd5 {[%clk 0:03:00.6]} 3... cxd5 {[%clk
0:02:56.5]} 4. Nf3 {[%clk 0:03:01.3]} 4... g6 {[%clk 0:02:56.6]} 5. Nc3 {[%clk
0:03:01.8]} 5... Bg7 {[%clk 0:02:57.2]} 6. Bf4 {[%clk 0:03:01.6]} 6... Nf6
{[%clk 0:02:57.5]} 7. e3 {[%clk 0:03:02.1]} 7... O-O {[%clk 0:02:57.9]} 8. Be2
{[%clk 0:03:02]} 8... Nc6 {[%clk 0:02:57.5]} 9. O-O {[%clk 0:03:02.4]} 9... b6
{[%clk 0:02:28.1]} 10. Rc1 {[%clk 0:02:53.3]} 10... Bb7 {[%clk 0:02:28.5]} 11.
Ne5 {[%clk 0:02:53.7]} 11... e6 {[%clk 0:02:25.1]} 12. Nxc6 {[%clk 0:02:48.9]}
12... Bxc6 {[%clk 0:02:24.3]} 13. Be5 {[%clk 0:02:49.8]} 13... Bb7 {[%clk
0:02:23.1]} 14. Qd2 {[%clk 0:02:34.6]} 14... Nd7 {[%clk 0:02:21.8]} 15. Bxg7
{[%clk 0:02:34]} 15... Kxg7 {[%clk 0:02:21.8]} 16. Rc2 {[%clk 0:02:33.2]} 16...
Qh4 {[%clk 0:02:19.5]} 17. g3 {[%clk 0:02:31.8]} 17... Qh3 {[%clk 0:02:18.8]}
18. Bf3 {[%clk 0:02:31.7]} 18... Nf6 {[%clk 0:02:16.9]} 19. Bg2 {[%clk
0:02:31.6]} 19... Qf5 {[%clk 0:02:14.1]} 20. Rfc1 {[%clk 0:02:30.1]} 20... h5
{[%clk 0:02:13.8]} 21. Nb5 {[%clk 0:02:21.6]} 21... Ne8 {[%clk 0:01:59]} 22. Nc7
{[%clk 0:02:19.6]} 22... Nxc7 {[%clk 0:01:58.5]} 23. Rxc7 {[%clk 0:02:20.4]}
23... Ba6 {[%clk 0:01:59.2]} 24. Qc2 {[%clk 0:02:07.2]} 24... Bd3 {[%clk
0:01:56.8]} 25. Qc3 {[%clk 0:02:06.6]} 25... h4 {[%clk 0:01:53.1]} 26. Rd1
{[%clk 0:01:42.7]} 26... hxg3 {[%clk 0:01:46.1]} 27. hxg3 {[%clk 0:01:22.5]}
27... Ba6 {[%clk 0:01:41.5]} 28. e4 {[%clk 0:01:19.6]} 28... dxe4 {[%clk
0:01:38.6]} 29. d5+ {[%clk 0:01:20.5]} 29... e5 {[%clk 0:01:38.8]} 30. d6 {[%clk
0:01:18.7]} 30... Rad8 {[%clk 0:01:33]} 31. Qe3 {[%clk 0:01:18.4]} 31... Bd3
{[%clk 0:01:29.9]} 32. Rxa7 {[%clk 0:01:16.9]} 32... Rh8 {[%clk 0:01:22.8]} 33.
f4 {[%clk 0:00:45]} 33... Qh5 {[%clk 0:01:11.1]} 34. Kf2 {[%clk 0:00:40.8]}
34... Qxd1 {[%clk 0:01:08.6]} 35. fxe5 {[%clk 0:00:41.1]} 35... Rh5 {[%clk
0:01:06.6]} 0-1

[Event "Late-Titled-Tuesday-Blitz-January-16-2024"]
[Site "Chess.com"]
[Date "2024.01.16"]
[Round "2"]
[White "lucliasco"]
[Black "sergeikim"]
[Result "1/2-1/2"]
[WhiteElo "2887"]
[BlackElo "2568"]
[TimeControl "180+1"]
[EndTime "14:16:21 PST"]
[Termination "Game drawn by repetition"]

1. e4 {[%clk 0:03:00.9]} 1... e5 {[%clk 0:02:59.9]} 2. Nf3 {[%clk 0:03:00.9]}
2... Nc6 {[%clk 0:03:00]} 3. d4 {[%clk 0:02:58.9]} 3... exd4 {[%clk 0:02:59.4]}
4. Bc4 {[%clk 0:02:58.8]} 4... Nf6 {[%clk 0:02:59]} 5. O-O {[%clk 0:02:57.6]}
5... Nxe4 {[%clk 0:02:58.5]} 6. Re1 {[%clk 0:02:58.3]} 6... d5 {[%clk
0:02:58.6]} 7. Nc3 {[%clk 0:02:59]} 7... dxc4 {[%clk 0:02:53.2]} 8. Rxe4+ {[%clk
0:02:55.7]} 8... Be6 {[%clk 0:02:52.6]} 9. Nxd4 {[%clk 0:02:55.7]} 9... Nxd4
{[%clk 0:02:50.8]} 10. Rxd4 {[%clk 0:02:55]} 10... Bd6 {[%clk 0:02:45.5]} 11.
Bf4 {[%clk 0:02:54.6]} 11... O-O {[%clk 0:02:45.5]} 12. Bxd6 {[%clk 0:02:53.8]}
12... cxd6 {[%clk 0:02:45.5]} 13. Rxd6 {[%clk 0:02:54.5]} 13... Qe7 {[%clk
0:02:44.7]} 14. Qd4 {[%clk 0:02:50]} 14... Rfd8 {[%clk 0:02:42.1]} 15. Rd1
{[%clk 0:02:49.5]} 15... Rxd6 {[%clk 0:02:42]} 16. Qxd6 {[%clk 0:02:50.4]} 16...
Qxd6 {[%clk 0:02:41.2]} 17. Rxd6 {[%clk 0:02:51.3]} 17... Kf8 {[%clk 0:02:35]}
18. f4 {[%clk 0:02:44.9]} 18... Ke7 {[%clk 0:02:34.3]} 19. Rd4 {[%clk
0:02:45.5]} 19... a6 {[%clk 0:02:29.6]} 20. a4 {[%clk 0:02:20.4]} 20... b5
{[%clk 0:02:25.3]} 21. axb5 {[%clk 0:02:17.8]} 21... axb5 {[%clk 0:02:25.4]} 22.
Nxb5 {[%clk 0:02:05.6]} 22... Ra1+ {[%clk 0:02:23.3]} 23. Kf2 {[%clk 0:02:05.1]}
23... Rb1 {[%clk 0:02:23.5]} 24. Na3 {[%clk 0:01:54.3]} 24... Rxb2 {[%clk
0:02:22.5]} 25. Nxc4 {[%clk 0:01:55]} 25... Rxc2+ {[%clk 0:02:21.2]} 26. Nd2
{[%clk 0:01:55.7]} 26... h5 {[%clk 0:02:16.3]} 27. g3 {[%clk 0:01:51.8]} 27...
g6 {[%clk 0:02:10.1]} 28. Ke3 {[%clk 0:01:51.7]} 28... Rc3+ {[%clk 0:02:07.3]}
29. Rd3 {[%clk 0:01:52.1]} 29... Rc2 {[%clk 0:02:06.8]} 30. Ra3 {[%clk
0:01:50.9]} 30... Kf6 {[%clk 0:02:02.5]} 31. Nf3 {[%clk 0:01:46.6]} 31... Ra2
{[%clk 0:01:57.3]} 32. Rxa2 {[%clk 0:01:46.1]} 32... Bxa2 {[%clk 0:01:56.7]} 33.
Nd4 {[%clk 0:01:44.1]} 33... Bd5 {[%clk 0:01:55.3]} 34. Kd3 {[%clk 0:01:39.2]}
34... Bg2 {[%clk 0:01:53.9]} 35. h4 {[%clk 0:01:33.9]} 35... Bd5 {[%clk
0:01:50]} 36. Ke3 {[%clk 0:01:34.1]} 36... Bg2 {[%clk 0:01:49.5]} 37. Ne2 {[%clk
0:01:32.8]} 37... Bd5 {[%clk 0:01:48.5]} 38. Nc3 {[%clk 0:01:32.8]} 38... Bg2
{[%clk 0:01:47.8]} 39. Kf2 {[%clk 0:01:31.9]} 39... Bc6 {[%clk 0:01:47.5]} 40.
Ne2 {[%clk 0:01:31.6]} 40... Bd5 {[%clk 0:01:45.4]} 41. Ng1 {[%clk 0:01:31.5]}
41... Kf5 {[%clk 0:01:44.3]} 42. Ne2 {[%clk 0:01:27.8]} 42... Kg4 {[%clk
0:01:42.9]} 43. Nd4 {[%clk 0:01:26.7]} 43... Bb7 {[%clk 0:01:37.1]} 44. Nb5
{[%clk 0:01:25.9]} 44... Bd5 {[%clk 0:01:35.8]} 45. Nd6 {[%clk 0:01:25.5]} 45...
Be6 {[%clk 0:01:32.8]} 46. Ne4 {[%clk 0:01:22.9]} 46... Kf5 {[%clk 0:01:29.1]}
47. Ng5 {[%clk 0:01:21]} 47... Bd5 {[%clk 0:01:28]} 48. Nh3 {[%clk 0:01:20.9]}
48... Kg4 {[%clk 0:01:27.3]} 49. Ng1 {[%clk 0:01:20.6]} 49... Be4 {[%clk
0:01:25.7]} 50. Ne2 {[%clk 0:01:20.5]} 50... Bd5 {[%clk 0:01:24.6]} 51. Nd4
{[%clk 0:01:20.2]} 51... Be4 {[%clk 0:01:21.7]} 52. Nb5 {[%clk 0:01:20.2]} 52...
Bd5 {[%clk 0:01:20]} 53. Nd6 {[%clk 0:01:20.3]} 53... Be6 {[%clk 0:01:18.2]} 54.
Ne4 {[%clk 0:01:17.7]} 54... Kf5 {[%clk 0:01:17]} 55. Nd6+ {[%clk 0:01:15.3]}
55... Kg4 {[%clk 0:01:16.2]} 1/2-1/2

[Event "Late-Titled-Tuesday-Blitz-January-16-2024"]
[Site "Chess.com"]
[Date "2024.01.16"]
[Round "2"]
[White "bescmelasti"]
[Black "MajorCoast"]
[Result "1-0"]
[WhiteElo "2660"]
[BlackElo "2226"]
[TimeControl "180+1"]
[EndTime "14:16:21 PST"]
[Termination "bescmelasti won by resignation"]

1. e4 {[%clk 0:02:34.2]} 1... c5 {[%clk 0:02:58.4]} 2. Nf3 {[%clk 0:02:33.1]}
2... e6 {[%clk 0:02:58.4]} 3. d4 {[%clk 0:02:33.2]} 3... cxd4 {[%clk 0:02:59.3]}
4. Nxd4 {[%clk 0:02:34.1]} 4... Nf6 {[%clk 0:02:59.8]} 5. Nc3 {[%clk 0:02:34.2]}
5... Nc6 {[%clk 0:03:00.4]} 6. Nxc6 {[%clk 0:02:34.4]} 6... bxc6 {[%clk
0:03:01.3]} 7. e5 {[%clk 0:02:34.9]} 7... Nd5 {[%clk 0:02:59.7]} 8. Ne4 {[%clk
0:02:35.5]} 8... Qc7 {[%clk 0:02:54.2]} 9. f4 {[%clk 0:02:35.2]} 9... Qb6 {[%clk
0:02:46.7]} 10. c4 {[%clk 0:02:35.3]} 10... Bb4+ {[%clk 0:02:45.1]} 11. Ke2
{[%clk 0:02:35.1]} 11... Ne7 {[%clk 0:02:03.7]} 12. Be3 {[%clk 0:02:29.9]} 12...
Qa6 {[%clk 0:01:54]} 13. Kf2 {[%clk 0:02:23.6]} 13... Nf5 {[%clk 0:01:52.4]} 14.
Bd3 {[%clk 0:01:50.3]} 14... Nxe3 {[%clk 0:01:51.3]} 15. Kxe3 {[%clk 0:01:48.7]}
15... Qb6+ {[%clk 0:01:51.9]} 16. Kf3 {[%clk 0:01:47.3]} 16... O-O {[%clk
0:01:47.4]} 17. a3 {[%clk 0:01:36.4]} 17... Be7 {[%clk 0:01:46.5]} 18. b4 {[%clk
0:01:37.3]} 18... c5 {[%clk 0:01:44]} 19. bxc5 {[%clk 0:01:34.8]} 19... Bxc5
{[%clk 0:01:44.9]} 20. Nxc5 {[%clk 0:01:33.8]} 20... Qxc5 {[%clk 0:01:45.8]} 21.
Be4 {[%clk 0:01:13.2]} 21... Ba6 {[%clk 0:01:31.2]} 22. Qd6 {[%clk 0:01:02.5]}
22... Qxc4 {[%clk 0:01:22.5]} 23. Rhe1 {[%clk 0:01:00.5]} 23... Rab8 {[%clk
0:01:13.8]} 24. Re3 {[%clk 0:00:55.8]} 24... Rb3 {[%clk 0:01:08.9]} 25. Re1
{[%clk 0:00:53.3]} 25... Rxe3+ {[%clk 0:01:04.2]} 26. Rxe3 {[%clk 0:00:54.2]}
26... Qf1+ {[%clk 0:01:04.1]} 27. Kg3 {[%clk 0:00:54.3]} 27... g5 {[%clk
0:00:58.4]} 28. fxg5 {[%clk 0:00:50.9]} 28... Rb8 {[%clk 0:00:41.7]} 29. Qxb8+
{[%clk 0:00:49.9]} 29... Kg7 {[%clk 0:00:42.1]} 30. Qd8 {[%clk 0:00:48.6]} 1-0

[Event "Late-Titled-Tuesday-Blitz-January-16-2024"]
[Site "Chess.com"]
[Date "2024.01.16"]
[Round "2"]
[White "TigrVShlyape"]
[Black "SanchezKelvin"]
[Result "1-0"]
[WhiteElo "2945"]
[BlackElo "2578"]
[TimeControl "180+1"]
[EndTime "14:16:22 PST"]
[Termination "TigrVShlyape won by resignation"]

1. e4 {[%clk 0:03:00.9]} 1... c5 {[%clk 0:02:57]} 2. Nf3 {[%clk 0:03:00.3]} 2...
d6 {[%clk 0:02:57.5]} 3. d4 {[%clk 0:03:00.1]} 3... cxd4 {[%clk 0:02:58.4]} 4.
Nxd4 {[%clk 0:03:00.5]} 4... Nf6 {[%clk 0:02:58.7]} 5. Nc3 {[%clk 0:03:01.1]}
5... g6 {[%clk 0:02:58.8]} 6. Be2 {[%clk 0:03:00.6]} 6... Bg7 {[%clk 0:02:58.4]}
7. O-O {[%clk 0:03:01.3]} 7... O-O {[%clk 0:02:55.8]} 8. Be3 {[%clk 0:03:01.8]}
8... a6 {[%clk 0:02:56.2]} 9. a4 {[%clk 0:03:01.5]} 9... Nbd7 {[%clk 0:02:56.3]}
10. Qd2 {[%clk 0:03:01.4]} 10... Ne5 {[%clk 0:02:56.1]} 11. f3 {[%clk
0:03:00.7]} 11... Bd7 {[%clk 0:02:56]} 12. a5 {[%clk 0:02:58.6]} 12... Rc8
{[%clk 0:02:56]} 13. Rfd1 {[%clk 0:02:58.5]} 13... Nh5 {[%clk 0:02:49.3]} 14.
Nd5 {[%clk 0:02:56.1]} 14... Bc6 {[%clk 0:02:35.4]} 15. Nb6 {[%clk 0:02:54.5]}
15... Rc7 {[%clk 0:02:32.3]} 16. c4 {[%clk 0:02:50.7]} 16... Nd7 {[%clk
0:02:30.1]} 17. Nd5 {[%clk 0:02:38.9]} 17... Bxd5 {[%clk 0:02:26.8]} 18. exd5
{[%clk 0:02:38.3]} 18... Nc5 {[%clk 0:02:25.4]} 19. Ra3 {[%clk 0:02:36.7]} 19...
Nf6 {[%clk 0:02:12.3]} 20. b4 {[%clk 0:02:33.3]} 20... Ncd7 {[%clk 0:02:12.2]}
21. Rc3 {[%clk 0:02:24.6]} 21... Re8 {[%clk 0:02:11.6]} 22. Rc2 {[%clk
0:02:22.8]} 22... Qc8 {[%clk 0:02:00.3]} 23. Nb3 {[%clk 0:02:18.9]} 23... e5
{[%clk 0:01:53.7]} 24. dxe6 {[%clk 0:02:13.5]} 24... Rxe6 {[%clk 0:01:53.3]} 25.
Bf1 {[%clk 0:02:05.5]} 25... d5 {[%clk 0:01:40.8]} 26. Nd4 {[%clk 0:02:01.9]}
26... Re8 {[%clk 0:01:32.8]} 27. c5 {[%clk 0:01:56.3]} 27... Ne5 {[%clk
0:01:32.4]} 28. Bf4 {[%clk 0:01:47.9]} 28... Nh5 {[%clk 0:01:31.4]} 29. Bh6
{[%clk 0:01:45.7]} 29... Bh8 {[%clk 0:01:24]} 30. Qc1 {[%clk 0:01:41.9]} 30...
Nc6 {[%clk 0:01:21.6]} 31. Nxc6 {[%clk 0:01:38]} 31... bxc6 {[%clk 0:01:10.6]}
32. Re2 {[%clk 0:01:34.3]} 32... Rce7 {[%clk 0:01:07.4]} 33. Rxe7 {[%clk
0:01:28.6]} 33... Rxe7 {[%clk 0:01:07.4]} 34. Re1 {[%clk 0:01:28.1]} 34... Bd4+
{[%clk 0:01:05.7]} 35. Kh1 {[%clk 0:01:27.2]} 35... Rxe1 {[%clk 0:00:46.8]} 36.
Qxe1 {[%clk 0:01:26.6]} 36... Bg7 {[%clk 0:00:45.4]} 37. Bd2 {[%clk 0:01:21]}
37... Nf6 {[%clk 0:00:37.3]} 38. Qe2 {[%clk 0:01:20.7]} 38... Qe6 {[%clk
0:00:31.3]} 39. Qxe6 {[%clk 0:01:20.4]} 39... fxe6 {[%clk 0:00:31.3]} 40. Bxa6
{[%clk 0:01:20.9]} 40... Ne8 {[%clk 0:00:28.4]} 41. Bb7 {[%clk 0:01:21]} 1-0

[Event "Late-Titled-Tuesday-Blitz-January-16-2024"]
[Site "Chess.com"]
[Date "2024.01.16"]
[Round "2"]
[White "GlavkonVVS"]
[Black "jjbolanos"]
[Result "1-0"]
[WhiteElo "2451"]
[BlackElo "2039"]
[TimeControl "180+1"]
[EndTime "14:16:23 PST"]
[Termination "GlavkonVVS won on time"]

1. c4 {[%clk 0:03:00.9]} 1... Nf6 {[%clk 0:02:58.7]} 2. Nc3 {[%clk 0:03:00.9]}
2... e6 {[%clk 0:02:58.7]} 3. Nf3 {[%clk 0:03:01.2]} 3... d5 {[%clk 0:02:58.7]}
4. d4 {[%clk 0:03:01.2]} 4... Be7 {[%clk 0:02:58.8]} 5. Bg5 {[%clk 0:03:01.2]}
5... Nbd7 {[%clk 0:02:57.9]} 6. e3 {[%clk 0:03:00.7]} 6... h6 {[%clk 0:02:58]}
7. Bf4 {[%clk 0:02:59.4]} 7... O-O {[%clk 0:02:57.7]} 8. h3 {[%clk 0:02:59.7]}
8... c5 {[%clk 0:02:57.6]} 9. cxd5 {[%clk 0:02:58.8]} 9... Nxd5 {[%clk
0:02:45.5]} 10. Nxd5 {[%clk 0:02:56]} 10... exd5 {[%clk 0:02:46.3]} 11. Bd3
{[%clk 0:02:52.4]} 11... c4 {[%clk 0:02:17]} 12. Bc2 {[%clk 0:02:41.1]} 12...
Bb4+ {[%clk 0:01:51]} 13. Kf1 {[%clk 0:02:41]} 13... b6 {[%clk 0:01:40.8]} 14.
g4 {[%clk 0:02:38.3]} 14... a5 {[%clk 0:01:34.5]} 15. g5 {[%clk 0:02:29.1]}
15... h5 {[%clk 0:01:25.2]} 16. g6 {[%clk 0:02:26.2]} 16... fxg6 {[%clk
0:01:17.1]} 17. Bxg6 {[%clk 0:02:25.4]} 17... Rxf4 {[%clk 0:00:40.7]} 18. exf4
{[%clk 0:02:24.9]} 18... Qf6 {[%clk 0:00:41.4]} 19. f5 {[%clk 0:02:08.3]} 19...
Nf8 {[%clk 0:00:38.5]} 20. Ne5 {[%clk 0:02:03.6]} 20... Nxg6 {[%clk 0:00:33]}
21. fxg6 {[%clk 0:02:03.4]} 21... Qg5 {[%clk 0:00:24.3]} 22. Qf3 {[%clk
0:01:59.2]} 22... Be6 {[%clk 0:00:06.8]} 23. Rg1 {[%clk 0:01:58]} 23... Qf5
{[%clk 0:00:07.2]} 24. Qxf5 {[%clk 0:01:51.4]} 24... Bxf5 {[%clk 0:00:08.1]} 25.
Rg3 {[%clk 0:01:49.2]} 25... h4 {[%clk 0:00:07.5]} 26. Rf3 {[%clk 0:01:48.3]}
26... Be4 {[%clk 0:00:07.9]} 27. Rf4 {[%clk 0:01:48.1]} 27... c3 {[%clk
0:00:04.1]} 28. bxc3 {[%clk 0:01:39.8]} 28... Bxc3 {[%clk 0:00:03.4]} 29. Rd1
{[%clk 0:01:38.4]} 29... Rc8 {[%clk 0:00:01.8]} 30. f3 {[%clk 0:01:35.8]} 30...
Bb4 {[%clk 0:00:02.3]} 31. fxe4 {[%clk 0:01:35.2]} 1-0

[Event "Late-Titled-Tuesday-Blitz-January-16-2024"]
[Site "Chess.com"]
[Date "2024.01.16"]
[Round "2"]
[White "tolimachess"]
[Black "maurovargas01"]
[Result "1-0"]
[WhiteElo "2426"]
[BlackElo "1850"]
[TimeControl "180+1"]
[EndTime "14:16:23 PST"]
[Termination "tolimachess won by resignation"]

1. e4 {[%clk 0:02:57]} 1... d5 {[%clk 0:02:59.6]} 2. exd5 {[%clk 0:02:54.9]}
2... Qxd5 {[%clk 0:03:00.5]} 3. Nc3 {[%clk 0:02:55.1]} 3... Qa5 {[%clk
0:03:00.7]} 4. g3 {[%clk 0:02:54.9]} 4... c6 {[%clk 0:03:00.9]} 5. Bg2 {[%clk
0:02:55.5]} 5... Nf6 {[%clk 0:03:01.4]} 6. Nge2 {[%clk 0:02:55.7]} 6... Bg4
{[%clk 0:03:01.5]} 7. h3 {[%clk 0:02:55]} 7... Bh5 {[%clk 0:02:59.4]} 8. O-O
{[%clk 0:02:54.7]} 8... Nbd7 {[%clk 0:02:57.7]} 9. d4 {[%clk 0:02:55.2]} 9... e6
{[%clk 0:02:56.6]} 10. Bf4 {[%clk 0:02:54.8]} 10... Be7 {[%clk 0:02:51.9]} 11.
a3 {[%clk 0:02:52.7]} 11... O-O {[%clk 0:02:50.5]} 12. g4 {[%clk 0:02:50.4]}
12... Bg6 {[%clk 0:02:47.8]} 13. Ng3 {[%clk 0:02:50.7]} 13... Rad8 {[%clk
0:02:39.9]} 14. Qe2 {[%clk 0:02:46.6]} 14... Rde8 {[%clk 0:02:34.1]} 15. Kh2
{[%clk 0:02:25.5]} 15... h5 {[%clk 0:02:29.4]} 16. g5 {[%clk 0:02:22.9]} 16...
h4 {[%clk 0:02:15.9]} 17. gxf6 {[%clk 0:02:22.3]} 17... hxg3+ {[%clk 0:02:14.2]}
18. fxg3 {[%clk 0:02:23.2]} 18... Nxf6 {[%clk 0:01:57.4]} 19. Ne4 {[%clk
0:02:04.3]} 19... Qb6 {[%clk 0:01:55.9]} 20. Nxf6+ {[%clk 0:01:58.2]} 20... Bxf6
{[%clk 0:01:53.7]} 21. Bd6 {[%clk 0:01:42.1]} 21... Bxd4 {[%clk 0:01:47.1]} 22.
c3 {[%clk 0:01:36.8]} 22... Bc5 {[%clk 0:01:36.4]} 23. Bxf8 {[%clk 0:01:36.9]}
23... Bxf8 {[%clk 0:01:34.6]} 24. Rad1 {[%clk 0:01:36.1]} 24... Qc7 {[%clk
0:01:27.6]} 25. Qe3 {[%clk 0:01:25.7]} 25... Be7 {[%clk 0:01:21]} 26. Be4 {[%clk
0:01:24.1]} 26... Bxe4 {[%clk 0:01:13.3]} 27. Qxe4 {[%clk 0:01:25]} 27... a6
{[%clk 0:01:13.1]} 28. Rf3 {[%clk 0:01:14.7]} 28... Qb6 {[%clk 0:01:11.5]} 29.
Qe2 {[%clk 0:01:11.9]} 29... Qc7 {[%clk 0:01:08.1]} 30. Qf1 {[%clk 0:01:05.5]}
30... Rf8 {[%clk 0:01:05.9]} 31. Rfd3 {[%clk 0:01:03.2]} 31... Bh4 {[%clk
0:01:03.6]} 32. Qf4 {[%clk 0:00:55.5]} 32... Qxf4 {[%clk 0:01:00.1]} 33. gxf4
{[%clk 0:00:56.4]} 33... Bf6 {[%clk 0:00:55.9]} 34. Rd7 {[%clk 0:00:56.3]} 1-0

[Event "Late-Titled-Tuesday-Blitz-January-16-2024"]
[Site "Chess.com"]
[Date "2024.01.16"]
[Round "2"]
[White "AEMEffi"]
[Black "GMAkobianSTL"]
[Result "0-1"]
[WhiteElo "2347"]
[BlackElo "2701"]
[TimeControl "180+1"]
[EndTime "14:16:24 PST"]
[Termination "GMAkobianSTL won by resignation"]

1. d4 {[%clk 0:03:00]} 1... Nf6 {[%clk 0:02:54.6]} 2. c4 {[%clk 0:02:59.7]} 2...
d6 {[%clk 0:02:54.6]} 3. Nc3 {[%clk 0:02:59.5]} 3... Nbd7 {[%clk 0:02:54.2]} 4.
Nf3 {[%clk 0:02:58.5]} 4... e5 {[%clk 0:02:53.9]} 5. Bg5 {[%clk 0:02:57.9]} 5...
Be7 {[%clk 0:02:53.7]} 6. e3 {[%clk 0:02:57.3]} 6... O-O {[%clk 0:02:53.7]} 7.
Qc2 {[%clk 0:02:52.8]} 7... c6 {[%clk 0:02:52.9]} 8. O-O-O {[%clk 0:02:44.7]}
8... Qc7 {[%clk 0:02:51.7]} 9. h3 {[%clk 0:02:40.1]} 9... a6 {[%clk 0:02:49.1]}
10. g4 {[%clk 0:02:23.5]} 10... b5 {[%clk 0:02:48.6]} 11. Nh4 {[%clk 0:01:46.3]}
11... Re8 {[%clk 0:02:40.9]} 12. Nf5 {[%clk 0:01:45.1]} 12... Bf8 {[%clk
0:02:39.8]} 13. Bg2 {[%clk 0:01:20.8]} 13... bxc4 {[%clk 0:02:33.4]} 14. dxe5
{[%clk 0:01:14.1]} 14... Rxe5 {[%clk 0:02:09.5]} 15. Bf4 {[%clk 0:01:07.1]}
15... Bb7 {[%clk 0:02:00.5]} 16. Bxe5 {[%clk 0:00:52.8]} 16... Nxe5 {[%clk
0:01:59.8]} 17. g5 {[%clk 0:00:53.2]} 17... Nfd7 {[%clk 0:01:53.3]} 18. f4
{[%clk 0:00:48.7]} 18... Nd3+ {[%clk 0:01:52.9]} 19. Rxd3 {[%clk 0:00:45.2]}
19... cxd3 {[%clk 0:01:52.2]} 20. Qxd3 {[%clk 0:00:46.1]} 20... d5 {[%clk
0:01:51.1]} 21. h4 {[%clk 0:00:38.5]} 21... Nc5 {[%clk 0:01:47.6]} 22. Qc2
{[%clk 0:00:35.4]} 22... g6 {[%clk 0:01:24.2]} 23. Nd4 {[%clk 0:00:27.6]} 23...
Re8 {[%clk 0:01:22.7]} 24. Rh3 {[%clk 0:00:15.4]} 24... Bg7 {[%clk 0:01:21]} 25.
h5 {[%clk 0:00:14.2]} 25... Bxd4 {[%clk 0:01:18.9]} 26. exd4 {[%clk 0:00:15.1]}
26... Qxf4+ {[%clk 0:01:18.3]} 27. Qd2 {[%clk 0:00:14.4]} 27... Re1+ {[%clk
0:01:15.3]} 28. Kc2 {[%clk 0:00:12.8]} 28... Qf5+ {[%clk 0:01:15.2]} 0-1

[Event "Late-Titled-Tuesday-Blitz-January-16-2024"]
[Site "Chess.com"]
[Date "2024.01.16"]
[Round "2"]
[White "Rutricks"]
[Black "ozen_metehan"]
[Result "0-1"]
[WhiteElo "2714"]
[BlackElo "2452"]
[TimeControl "180+1"]
[EndTime "14:16:28 PST"]
[Termination "ozen_metehan won on time"]

1. c4 {[%clk 0:03:00.9]} 1... e5 {[%clk 0:02:57.6]} 2. g3 {[%clk 0:02:57.5]}
2... Nc6 {[%clk 0:02:56.3]} 3. Bg2 {[%clk 0:02:57.1]} 3... g6 {[%clk 0:02:54]}
4. Nc3 {[%clk 0:02:52.7]} 4... Bg7 {[%clk 0:02:54]} 5. Rb1 {[%clk 0:02:53.3]}
5... a5 {[%clk 0:02:53]} 6. e3 {[%clk 0:02:51.7]} 6... Nge7 {[%clk 0:02:52.3]}
7. Nge2 {[%clk 0:02:52.1]} 7... O-O {[%clk 0:02:52.9]} 8. O-O {[%clk 0:02:51.6]}
8... d6 {[%clk 0:02:53.5]} 9. d4 {[%clk 0:02:51.7]} 9... exd4 {[%clk 0:02:53.2]}
10. exd4 {[%clk 0:02:46.5]} 10... Nf5 {[%clk 0:02:51.6]} 11. d5 {[%clk
0:02:43.2]} 11... Ne5 {[%clk 0:02:51.4]} 12. b3 {[%clk 0:02:42.7]} 12... h5
{[%clk 0:02:47.9]} 13. Ne4 {[%clk 0:02:29.7]} 13... h4 {[%clk 0:02:44.7]} 14.
Bg5 {[%clk 0:02:29.6]} 14... f6 {[%clk 0:02:44.4]} 15. Bd2 {[%clk 0:02:28.1]}
15... a4 {[%clk 0:02:33.8]} 16. Bc3 {[%clk 0:02:28]} 16... Bd7 {[%clk
0:02:23.2]} 17. Nf4 {[%clk 0:02:27.2]} 17... g5 {[%clk 0:02:18.4]} 18. Ne6
{[%clk 0:02:21.2]} 18... Bxe6 {[%clk 0:02:18.4]} 19. dxe6 {[%clk 0:02:22.1]}
19... hxg3 {[%clk 0:02:16.7]} 20. hxg3 {[%clk 0:02:13.7]} 20... Qe7 {[%clk
0:02:16.3]} 21. Re1 {[%clk 0:02:03.9]} 21... g4 {[%clk 0:02:13.4]} 22. Qc2
{[%clk 0:01:42.4]} 22... c6 {[%clk 0:02:02.3]} 23. Rbd1 {[%clk 0:01:40.6]} 23...
Qxe6 {[%clk 0:02:00.6]} 24. Bb4 {[%clk 0:01:27.8]} 24... axb3 {[%clk 0:01:59.2]}
25. axb3 {[%clk 0:01:27.2]} 25... Rad8 {[%clk 0:01:58.5]} 26. Ba5 {[%clk
0:01:27]} 26... Ra8 {[%clk 0:01:55.6]} 27. Bc7 {[%clk 0:01:26.7]} 27... Nf3+
{[%clk 0:01:40.9]} 28. Bxf3 {[%clk 0:01:25.8]} 28... gxf3 {[%clk 0:01:41.8]} 29.
Nxd6 {[%clk 0:01:19.1]} 29... Nd4 {[%clk 0:01:30]} 30. Qg6 {[%clk 0:00:14.3]}
30... Qh3 {[%clk 0:01:21.6]} 0-1